[Event "Titled Tuesday Blitz October 11 Late 2022"]
[White "Fernandez De La Vara, Arnaldo"]
[Black "Aarav Dengla"]
[WhiteFideId "3518388"]
[BlackFideId "45059756"]
[WhiteElo "2387"]
[BlackElo "2257"]
[Result "1-0"]
[Round "08"]
[TimeControl "180+1"]
[Date "2022.10.11"]
[WhiteClock "0:00:06"]
[BlackClock "0:00:12"]

1. Nf3 {[%clk 0:03:00]}  d5 {[%clk 0:02:58]} 2. b3 {[%clk 0:03:00]}  e6 {[%clk 0:02:54]} 3. Bb2 {[%clk 0:03:01]}  Nf6 {[%clk 0:02:54]} 4. g3 {[%clk 0:03:01]}  b6 {[%clk 0:02:54]} 5. Bg2 {[%clk 0:03:02]}  Bb7 {[%clk 0:02:54]} 6. O-O {[%clk 0:03:02]}  c5 {[%clk 0:02:55]} 7. c4 {[%clk 0:03:02]}  Nbd7 {[%clk 0:02:54]} 8. cxd5 {[%clk 0:02:56]}  exd5 {[%clk 0:02:55]} 9. d4 {[%clk 0:02:56]}  Be7 {[%clk 0:02:55]} 10. Nc3 {[%clk 0:02:57]}  Rc8 {[%clk 0:02:54]} 11. dxc5 {[%clk 0:02:45]}  bxc5 {[%clk 0:02:55]} 12. Nh4 {[%clk 0:02:45]}  Nb6 {[%clk 0:02:50]} 13. Nf5 {[%clk 0:02:44]}  O-O {[%clk 0:02:49]} 14. Rc1 {[%clk 0:02:26]}  Qd7 {[%clk 0:02:40]} 15. Nxe7+ {[%clk 0:02:16]}  Qxe7 {[%clk 0:02:36]} 16. e3 {[%clk 0:02:17]}  Rfd8 {[%clk 0:02:31]} 17. Ne2 {[%clk 0:02:13]}  Ba6 {[%clk 0:02:09]} 18. Re1 {[%clk 0:02:10]}  c4 {[%clk 0:02:08]} 19. Nf4 {[%clk 0:02:03]}  Bb7 {[%clk 0:01:56]} 20. Qd4 {[%clk 0:02:00]}  h6 {[%clk 0:01:36]} 21. Red1 {[%clk 0:01:55]}  Ne8 {[%clk 0:01:19]} 22. Bh3 {[%clk 0:01:23]}  Rb8 {[%clk 0:01:13]} 23. Qe5 {[%clk 0:01:21]}  Qf8 {[%clk 0:01:03]} 24. Rd2 {[%clk 0:01:00]}  Qd6 {[%clk 0:00:50]} 25. Rcd1 {[%clk 0:00:37]}  cxb3 {[%clk 0:00:29]} 26. axb3 {[%clk 0:00:36]}  Qxe5 {[%clk 0:00:25]} 27. Bxe5 {[%clk 0:00:37]}  Nd6 {[%clk 0:00:26]} 28. Bg2 {[%clk 0:00:29]}  Rbc8 {[%clk 0:00:24]} 29. Nxd5 {[%clk 0:00:29]}  Bxd5 {[%clk 0:00:21]} 30. Bxd5 {[%clk 0:00:30]}  Nxd5 {[%clk 0:00:22]} 31. Rxd5 {[%clk 0:00:30]}  Nb7 {[%clk 0:00:22]} 32. b4 {[%clk 0:00:23]}  f6 {[%clk 0:00:21]} 33. Bb2 {[%clk 0:00:12]}  Kf7 {[%clk 0:00:19]} 34. Rxd8 {[%clk 0:00:05]}  Rxd8 {[%clk 0:00:20]} 35. Ra1 {[%clk 0:00:04]}  Ra8 {[%clk 0:00:17]} 36. Ra6 {[%clk 0:00:04]}  Ke7 {[%clk 0:00:14]} 37. Bd4 {[%clk 0:00:05]}  Kd7 {[%clk 0:00:14]} 38. Rxa7 {[%clk 0:00:05]}  Rb8 {[%clk 0:00:11]} 39. b5 {[%clk 0:00:02]}  Kc7 {[%clk 0:00:11]} 40. b6+ {[%clk 0:00:03]}  Kc6 {[%clk 0:00:11]} 41. Ra1 {[%clk 0:00:03]}  Rc8 {[%clk 0:00:10]} 42. Rc1+ {[%clk 0:00:04]}  Kd7 {[%clk 0:00:10]} 43. Rxc8 {[%clk 0:00:05]}  Kxc8 {[%clk 0:00:11]} 44. Kg2 {[%clk 0:00:06]}  Kd7 {[%clk 0:00:11]} 45. Kf3 {[%clk 0:00:07]}  Nd6 {[%clk 0:00:11]} 46. Kg4 {[%clk 0:00:06]}  Ke6 {[%clk 0:00:11]} 47. f3 {[%clk 0:00:05]}  f5+ {[%clk 0:00:10]} 48. Kh3 {[%clk 0:00:03]}  Kf7 {[%clk 0:00:06]} 49. g4 {[%clk 0:00:03]}  g6 {[%clk 0:00:04]} 50. gxf5 {[%clk 0:00:03]}  gxf5 {[%clk 0:00:05]} 51. Kg3 {[%clk 0:00:02]}  Ke6 {[%clk 0:00:05]} 52. Kf4 {[%clk 0:00:03]}  Nb7 {[%clk 0:00:02]} 53. h3 {[%clk 0:00:04]}  Nd6 {[%clk 0:00:02]} 54. Kg3 {[%clk 0:00:05]}  Nb7 {[%clk 0:00:03]} 55. Kh4 {[%clk 0:00:06]}  Nd6 {[%clk 0:00:02]} 56. Kh5 {[%clk 0:00:06]}  f4 {[%clk 0:00:03]} 57. exf4 {[%clk 0:00:06]}  Kf5 {[%clk 0:00:03]} 58. Be5 {[%clk 0:00:06]}  Nb7 {[%clk 0:00:01]} 59. Kxh6 {[%clk 0:00:06]}  Nc5 {[%clk 0:00:02]} 60. Kg7 {[%clk 0:00:06]}  Nb7 {[%clk 0:00:03]} 61. h4 {[%clk 0:00:07]}  Nc5 {[%clk 0:00:04]} 62. h5 {[%clk 0:00:07]}  Ne6+ {[%clk 0:00:05]} 63. Kf7 {[%clk 0:00:08]}  Nd8+ {[%clk 0:00:06]} 64. Ke7 {[%clk 0:00:08]}  Nc6+ {[%clk 0:00:07]} 65. Kd6 {[%clk 0:00:09]}  Na5 {[%clk 0:00:07]} 66. Kc7 {[%clk 0:00:08]}  Ke6 {[%clk 0:00:06]} 67. Bc3 {[%clk 0:00:08]}  Nb7 {[%clk 0:00:05]} 68. Kxb7 {[%clk 0:00:09]}  Kf5 {[%clk 0:00:06]} 69. Kc6 {[%clk 0:00:09]}  Kxf4 {[%clk 0:00:06]} 70. b7 {[%clk 0:00:09]}  Kxf3 {[%clk 0:00:07]} 71. b8=Q {[%clk 0:00:10]}  Ke2 {[%clk 0:00:08]} 72. Bh8 {[%clk 0:00:09]}  Kd1 {[%clk 0:00:09]} 73. Qd6+ {[%clk 0:00:07]}  Kc1 {[%clk 0:00:10]} 74. Bf6 {[%clk 0:00:06]}  Kb1 {[%clk 0:00:11]} 75. Bg5 {[%clk 0:00:06]}  Ka1 {[%clk 0:00:11]} 76. Kc5 {[%clk 0:00:07]}  Kb1 {[%clk 0:00:11]} 77. Kc4 {[%clk 0:00:07]}  Ka1 {[%clk 0:00:12]} 78. Kb3 {[%clk 0:00:06]} 1-0


[Site "https://www.chess.com"]

[Event "Titled Tuesday Blitz October 11 Late 2022"]
[White "Garmash, Aliona"]
[Black "Carbone, Diego"]
[WhiteFideId "34127620"]
[BlackFideId "3002179"]
[WhiteElo "1980"]
[BlackElo "2243"]
[Result "0-1"]
[Round "08"]
[TimeControl "180+1"]
[Date "2022.10.12"]
[WhiteClock "0:00:01"]
[BlackClock "0:01:03"]

1. d4 {[%clk 0:03:00]}  Nf6 {[%clk 0:02:59]} 2. c4 {[%clk 0:03:00]}  g6 {[%clk 0:03:00]} 3. Nc3 {[%clk 0:02:59]}  d5 {[%clk 0:03:00]} 4. cxd5 {[%clk 0:02:58]}  Nxd5 {[%clk 0:03:01]} 5. e4 {[%clk 0:02:59]}  Nxc3 {[%clk 0:03:02]} 6. bxc3 {[%clk 0:02:58]}  Bg7 {[%clk 0:03:03]} 7. Bc4 {[%clk 0:02:58]}  c5 {[%clk 0:03:03]} 8. Ne2 {[%clk 0:02:58]}  Nc6 {[%clk 0:03:04]} 9. Be3 {[%clk 0:02:58]}  O-O {[%clk 0:03:04]} 10. O-O {[%clk 0:02:58]}  Na5 {[%clk 0:03:04]} 11. Bd3 {[%clk 0:02:53]}  b6 {[%clk 0:03:04]} 12. Qd2 {[%clk 0:02:35]}  e5 {[%clk 0:03:04]} 13. dxc5 {[%clk 0:02:23]}  Be6 {[%clk 0:02:57]} 14. cxb6 {[%clk 0:02:06]}  Nc4 {[%clk 0:02:03]} 15. Bxc4 {[%clk 0:02:04]}  Qxd2 {[%clk 0:02:00]} 16. Bxd2 {[%clk 0:02:05]}  Bxc4 {[%clk 0:02:00]} 17. Rfe1 {[%clk 0:02:04]}  axb6 {[%clk 0:01:56]} 18. Be3 {[%clk 0:01:56]}  b5 {[%clk 0:01:53]} 19. Nc1 {[%clk 0:01:47]}  Rfc8 {[%clk 0:01:52]} 20. Nb3 {[%clk 0:01:40]}  Bf8 {[%clk 0:01:49]} 21. h3 {[%clk 0:01:21]}  Ba3 {[%clk 0:01:47]} 22. Rab1 {[%clk 0:01:18]}  Bd3 {[%clk 0:01:46]} 23. Rbd1 {[%clk 0:01:17]}  Rxc3 {[%clk 0:01:39]} 24. Bh6 {[%clk 0:00:59]}  Bb4 {[%clk 0:01:35]} 25. Re3 {[%clk 0:00:54]}  Bc4 {[%clk 0:01:33]} 26. Rxc3 {[%clk 0:00:43]}  Bxc3 {[%clk 0:01:34]} 27. Rd7 {[%clk 0:00:35]}  Bb4 {[%clk 0:01:34]} 28. Rb7 {[%clk 0:00:30]}  Rc8 {[%clk 0:01:29]} 29. Nd2 {[%clk 0:00:18]}  Bf8 {[%clk 0:01:26]} 30. Bxf8 {[%clk 0:00:17]}  Kxf8 {[%clk 0:01:26]} 31. Nxc4 {[%clk 0:00:17]}  bxc4 {[%clk 0:01:25]} 32. Rb2 {[%clk 0:00:17]}  Ke7 {[%clk 0:01:19]} 33. Rc2 {[%clk 0:00:16]}  c3 {[%clk 0:01:19]} 34. Kf1 {[%clk 0:00:16]}  f5 {[%clk 0:01:11]} 35. exf5 {[%clk 0:00:15]}  gxf5 {[%clk 0:01:11]} 36. f3 {[%clk 0:00:14]}  Kd6 {[%clk 0:01:11]} 37. Ke2 {[%clk 0:00:13]}  Kd5 {[%clk 0:01:06]} 38. a4 {[%clk 0:00:10]}  Kc4 {[%clk 0:01:03]} 39. g4 {[%clk 0:00:07]}  Kb3 {[%clk 0:01:04]} 40. Rc1 {[%clk 0:00:06]}  fxg4 {[%clk 0:01:04]} 41. hxg4 {[%clk 0:00:04]}  c2 {[%clk 0:01:04]} 42. a5 {[%clk 0:00:01]}  Kb2 {[%clk 0:01:03]} 0-1


[Site "https://www.chess.com"]

[Event "Titled Tuesday Blitz October 11 Late 2022"]
[White "Gilmanov, Mansur"]
[Black "Zhigalko, Sergei"]
[WhiteFideId "4166868"]
[BlackFideId "13502956"]
[WhiteElo "2377"]
[BlackElo "2662"]
[Result "0-1"]
[Round "08"]
[TimeControl "180+1"]
[Date "2022.10.11"]
[WhiteClock "0:00:27"]
[BlackClock "0:01:33"]

1. d4 {[%clk 0:03:00]}  Nf6 {[%clk 0:02:59]} 2. Bg5 {[%clk 0:03:01]}  d5 {[%clk 0:02:57]} 3. Bxf6 {[%clk 0:03:01]}  exf6 {[%clk 0:02:58]} 4. e3 {[%clk 0:03:01]}  Bd6 {[%clk 0:02:58]} 5. c4 {[%clk 0:03:01]}  dxc4 {[%clk 0:02:59]} 6. Bxc4 {[%clk 0:03:01]}  O-O {[%clk 0:02:59]} 7. Nf3 {[%clk 0:02:59]}  Nd7 {[%clk 0:02:53]} 8. Nc3 {[%clk 0:02:58]}  f5 {[%clk 0:02:53]} 9. O-O {[%clk 0:02:56]}  Nf6 {[%clk 0:02:53]} 10. Ne5 {[%clk 0:02:45]}  Bxe5 {[%clk 0:02:33]} 11. dxe5 {[%clk 0:02:46]}  Ng4 {[%clk 0:02:33]} 12. Qb3 {[%clk 0:01:41]}  Qh4 {[%clk 0:02:18]} 13. h3 {[%clk 0:01:33]}  Nxe5 {[%clk 0:02:19]} 14. Be2 {[%clk 0:01:08]}  c6 {[%clk 0:02:06]} 15. Rad1 {[%clk 0:01:07]}  Qe7 {[%clk 0:01:58]} 16. Na4 {[%clk 0:00:49]}  b5 {[%clk 0:01:53]} 17. Nc3 {[%clk 0:00:42]}  a5 {[%clk 0:01:49]} 18. Qc2 {[%clk 0:00:31]}  Be6 {[%clk 0:01:46]} 19. Rd4 {[%clk 0:00:30]}  a4 {[%clk 0:01:36]} 20. a3 {[%clk 0:00:27]}  g6 {[%clk 0:01:36]} 21. Rfd1 {[%clk 0:00:27]}  Bb3 {[%clk 0:01:36]} 22. Qd2 {[%clk 0:00:26]}  Bxd1 {[%clk 0:01:36]} 23. Qxd1 {[%clk 0:00:27]}  Rfd8 {[%clk 0:01:36]} 24. f4 {[%clk 0:00:27]}  Nc4 {[%clk 0:01:33]} 0-1


[Site "https://www.chess.com"]

[Event "Titled Tuesday Blitz October 11 Late 2022"]
[White "Gonzalez, Francisco Silva"]
[Black "Migot, Tangi"]
[WhiteFideId "1512285"]
[BlackFideId "662445"]
[WhiteElo "2159"]
[BlackElo "2486"]
[Result "1-0"]
[Round "08"]
[TimeControl "180+1"]
[Date "2022.10.12"]
[WhiteClock "0:02:12"]
[BlackClock "0:01:46"]

1. d4 {[%clk 0:03:00]}  Nf6 {[%clk 0:02:59]} 2. c4 {[%clk 0:03:00]}  g6 {[%clk 0:03:00]} 3. Nc3 {[%clk 0:02:59]}  d5 {[%clk 0:03:00]} 4. Bf4 {[%clk 0:02:59]}  Bg7 {[%clk 0:02:59]} 5. Nf3 {[%clk 0:02:57]}  Ne4 {[%clk 0:02:51]} 6. Nxd5 {[%clk 0:02:55]}  Na6 {[%clk 0:02:46]} 7. Qc2 {[%clk 0:02:51]}  Bf5 {[%clk 0:02:45]} 8. g4 {[%clk 0:02:46]}  e6 {[%clk 0:02:30]} 9. Ne3 {[%clk 0:02:33]}  g5 {[%clk 0:02:19]} 10. Be5 {[%clk 0:02:25]}  f6 {[%clk 0:02:12]} 11. gxf5 {[%clk 0:02:24]}  fxe5 {[%clk 0:02:02]} 12. Qxe4 {[%clk 0:02:21]}  O-O {[%clk 0:02:02]} 13. Nxe5 {[%clk 0:02:12]}  exf5 {[%clk 0:01:54]} 14. Nxf5 {[%clk 0:02:11]}  Rxf5 {[%clk 0:01:49]} 15. Qxf5 {[%clk 0:02:11]}  Qxd4 {[%clk 0:01:49]} 16. Qe6+ {[%clk 0:02:12]}  Kh8 {[%clk 0:01:45]} 17. Nf7+ {[%clk 0:02:12]}  Kg8 {[%clk 0:01:46]} 18. Nh6+ {[%clk 0:02:12]}  Kh8 {[%clk 0:01:46]} 19. Qg8+ {[%clk 0:02:11]}  Rxg8 {[%clk 0:01:46]} 20. Nf7# {[%clk 0:02:12]} 1-0


[Site "https://www.chess.com"]

[Event "Titled Tuesday Blitz October 11 Late 2022"]
[White "Goryachkina, Aleksandra"]
[Black "Poltorak, Sebastian"]
[WhiteFideId "4147103"]
[BlackFideId "1199498"]
[WhiteElo "2682"]
[BlackElo "2534"]
[Result "1-0"]
[Round "08"]
[TimeControl "180+1"]
[Date "2022.10.12"]
[WhiteClock "0:00:03"]
[BlackClock "0:00:05"]

1. e4 {[%clk 0:03:00]}  c5 {[%clk 0:02:59]} 2. Nf3 {[%clk 0:03:00]}  Nc6 {[%clk 0:02:59]} 3. Bb5 {[%clk 0:02:59]}  e6 {[%clk 0:02:59]} 4. Bxc6 {[%clk 0:02:53]}  dxc6 {[%clk 0:02:59]} 5. O-O {[%clk 0:02:51]}  Ne7 {[%clk 0:02:59]} 6. d3 {[%clk 0:02:50]}  Ng6 {[%clk 0:02:59]} 7. Be3 {[%clk 0:02:49]}  Be7 {[%clk 0:02:59]} 8. Nc3 {[%clk 0:02:42]}  O-O {[%clk 0:02:59]} 9. Qd2 {[%clk 0:02:40]}  b6 {[%clk 0:02:57]} 10. a4 {[%clk 0:02:39]}  a5 {[%clk 0:02:56]} 11. b3 {[%clk 0:02:37]}  e5 {[%clk 0:02:53]} 12. h3 {[%clk 0:02:35]}  f5 {[%clk 0:02:51]} 13. exf5 {[%clk 0:02:34]}  Bxf5 {[%clk 0:02:52]} 14. Qe2 {[%clk 0:02:06]}  Qd7 {[%clk 0:02:44]} 15. Kh2 {[%clk 0:01:49]}  Rae8 {[%clk 0:02:30]} 16. Ne4 {[%clk 0:01:45]}  h6 {[%clk 0:02:21]} 17. Rae1 {[%clk 0:01:39]}  Rf7 {[%clk 0:02:15]} 18. Nfd2 {[%clk 0:01:35]}  Ref8 {[%clk 0:02:13]} 19. Ng3 {[%clk 0:01:23]}  Be6 {[%clk 0:02:11]} 20. Nc4 {[%clk 0:01:22]}  Qc7 {[%clk 0:02:03]} 21. Ne4 {[%clk 0:01:06]}  Bd5 {[%clk 0:01:51]} 22. Qd2 {[%clk 0:01:02]}  Nh4 {[%clk 0:01:31]} 23. Qc3 {[%clk 0:00:42]}  Ng6 {[%clk 0:01:04]} 24. Kh1 {[%clk 0:00:34]}  Bf6 {[%clk 0:00:58]} 25. f3 {[%clk 0:00:32]}  Kh7 {[%clk 0:00:58]} 26. Qd2 {[%clk 0:00:27]}  Ne7 {[%clk 0:00:57]} 27. Nxf6+ {[%clk 0:00:26]}  Rxf6 {[%clk 0:00:57]} 28. Bg1 {[%clk 0:00:22]}  Ng6 {[%clk 0:00:55]} 29. Bh2 {[%clk 0:00:22]}  Re6 {[%clk 0:00:52]} 30. Re3 {[%clk 0:00:21]}  Bxc4 {[%clk 0:00:45]} 31. bxc4 {[%clk 0:00:20]}  Rfe8 {[%clk 0:00:39]} 32. Rfe1 {[%clk 0:00:20]}  Qd6 {[%clk 0:00:38]} 33. Re4 {[%clk 0:00:20]}  Qd7 {[%clk 0:00:30]} 34. Qc3 {[%clk 0:00:19]}  Qe7 {[%clk 0:00:28]} 35. Qb2 {[%clk 0:00:19]}  Qc7 {[%clk 0:00:25]} 36. f4 {[%clk 0:00:16]}  Qf7 {[%clk 0:00:13]} 37. fxe5 {[%clk 0:00:15]}  Qf2 {[%clk 0:00:10]} 38. Qxb6 {[%clk 0:00:13]}  Rf8 {[%clk 0:00:09]} 39. Qb2 {[%clk 0:00:08]}  Nh4 {[%clk 0:00:08]} 40. R4e2 {[%clk 0:00:05]}  Qf5 {[%clk 0:00:05]} 41. Kg1 {[%clk 0:00:02]}  Qg5 {[%clk 0:00:06]} 42. Kh1 {[%clk 0:00:02]}  Rg6 {[%clk 0:00:04]} 43. Qc1 {[%clk 0:00:03]}  Qh5 {[%clk 0:00:04]} 44. Qd2 {[%clk 0:00:02]}  Rf5 {[%clk 0:00:03]} 45. e6 {[%clk 0:00:02]}  Rfg5 {[%clk 0:00:03]} 46. e7 {[%clk 0:00:03]}  Rxg2 {[%clk 0:00:04]} 47. Rxg2 {[%clk 0:00:02]}  Rg3 {[%clk 0:00:03]} 48. Bxg3 {[%clk 0:00:02]}  Qf3 {[%clk 0:00:03]} 49. Qf2 {[%clk 0:00:02]}  Qh5 {[%clk 0:00:01]} 50. Bxh4 {[%clk 0:00:02]}  g5 {[%clk 0:00:02]} 51. Bxg5 {[%clk 0:00:02]}  Qxh3+ {[%clk 0:00:02]} 52. Kg1 {[%clk 0:00:02]}  Qd7 {[%clk 0:00:03]} 53. e8=Q {[%clk 0:00:02]}  Qxe8 {[%clk 0:00:04]} 54. Rxe8 {[%clk 0:00:02]}  Kg6 {[%clk 0:00:04]} 55. Re7 {[%clk 0:00:03]}  Kh5 {[%clk 0:00:05]} 56. Re6 {[%clk 0:00:03]} 1-0


[Site "https://www.chess.com"]

[Event "Titled Tuesday Blitz October 11 Late 2022"]
[White "Hansen, Eric"]
[Black "Mamedov, Rauf"]
[WhiteFideId "2606771"]
[BlackFideId "13401653"]
[WhiteElo "2568"]
[BlackElo "2650"]
[Result "0-1"]
[Round "08"]
[TimeControl "180+1"]
[Date "2022.10.11"]
[WhiteClock "0:00:03"]
[BlackClock "0:00:17"]

1. d4 {[%clk 0:03:00]}  Nf6 {[%clk 0:02:57]} 2. c4 {[%clk 0:02:58]}  g6 {[%clk 0:02:56]} 3. Nc3 {[%clk 0:02:57]}  Bg7 {[%clk 0:02:56]} 4. e4 {[%clk 0:02:50]}  d6 {[%clk 0:02:54]} 5. h3 {[%clk 0:02:48]}  O-O {[%clk 0:02:53]} 6. Nf3 {[%clk 0:02:49]}  e5 {[%clk 0:02:52]} 7. d5 {[%clk 0:02:47]}  Nh5 {[%clk 0:02:50]} 8. g3 {[%clk 0:02:45]}  Na6 {[%clk 0:02:49]} 9. Be2 {[%clk 0:02:43]}  Nc5 {[%clk 0:02:46]} 10. Be3 {[%clk 0:02:18]}  a5 {[%clk 0:02:43]} 11. Nd2 {[%clk 0:02:16]}  Nf6 {[%clk 0:02:37]} 12. g4 {[%clk 0:02:10]}  c6 {[%clk 0:02:36]} 13. h4 {[%clk 0:01:54]}  a4 {[%clk 0:02:10]} 14. h5 {[%clk 0:01:47]}  Qa5 {[%clk 0:02:03]} 15. h6 {[%clk 0:01:15]}  Bh8 {[%clk 0:02:02]} 16. Kf1 {[%clk 0:01:13]}  Bd7 {[%clk 0:01:40]} 17. Rc1 {[%clk 0:01:08]}  cxd5 {[%clk 0:01:38]} 18. cxd5 {[%clk 0:01:05]}  b5 {[%clk 0:01:38]} 19. a3 {[%clk 0:00:55]}  Rac8 {[%clk 0:01:36]} 20. g5 {[%clk 0:00:54]}  Ne8 {[%clk 0:01:36]} 21. Kg2 {[%clk 0:00:51]}  f6 {[%clk 0:01:34]} 22. b4 {[%clk 0:00:35]}  axb3 {[%clk 0:01:30]} 23. Nxb3 {[%clk 0:00:36]}  Nxb3 {[%clk 0:01:21]} 24. Qxb3 {[%clk 0:00:37]}  fxg5 {[%clk 0:01:14]} 25. Qb4 {[%clk 0:00:31]}  Qa8 {[%clk 0:01:06]} 26. Nxb5 {[%clk 0:00:29]}  Rb8 {[%clk 0:01:06]} 27. a4 {[%clk 0:00:29]}  Bf6 {[%clk 0:00:55]} 28. Rc4 {[%clk 0:00:22]}  Bd8 {[%clk 0:00:51]} 29. Rhc1 {[%clk 0:00:19]}  Bb6 {[%clk 0:00:51]} 30. Qd2 {[%clk 0:00:16]}  Bxb5 {[%clk 0:00:41]} 31. axb5 {[%clk 0:00:14]}  Nf6 {[%clk 0:00:41]} 32. Bxg5 {[%clk 0:00:10]}  Nd7 {[%clk 0:00:24]} 33. Rf1 {[%clk 0:00:08]}  Nc5 {[%clk 0:00:23]} 34. Bg4 {[%clk 0:00:06]}  Kh8 {[%clk 0:00:22]} 35. Qc2 {[%clk 0:00:04]}  Qa3 {[%clk 0:00:20]} 36. Qe2 {[%clk 0:00:03]}  Qb3 {[%clk 0:00:20]} 37. Rc2 {[%clk 0:00:03]}  Rf7 {[%clk 0:00:20]} 38. Ra2 {[%clk 0:00:03]}  Rbf8 {[%clk 0:00:20]} 39. Be6 {[%clk 0:00:03]}  Nxe6 {[%clk 0:00:20]} 40. dxe6 {[%clk 0:00:03]}  Qxe6 {[%clk 0:00:21]} 41. Rd2 {[%clk 0:00:04]}  Rxf2+ {[%clk 0:00:18]} 42. Rxf2 {[%clk 0:00:04]}  Rxf2+ {[%clk 0:00:19]} 43. Qxf2 {[%clk 0:00:05]}  Bxf2 {[%clk 0:00:20]} 44. Rxf2 {[%clk 0:00:06]}  Qg4+ {[%clk 0:00:20]} 45. Kf1 {[%clk 0:00:06]}  Kg8 {[%clk 0:00:20]} 46. Be7 {[%clk 0:00:06]}  Qh3+ {[%clk 0:00:18]} 47. Ke2 {[%clk 0:00:05]}  Qh5+ {[%clk 0:00:18]} 48. Ke1 {[%clk 0:00:05]}  Qxh6 {[%clk 0:00:18]} 49. b6 {[%clk 0:00:05]}  Qe3+ {[%clk 0:00:18]} 50. Re2 {[%clk 0:00:05]}  Qxb6 {[%clk 0:00:18]} 51. Bf6 {[%clk 0:00:02]}  Kf7 {[%clk 0:00:18]} 52. Bh4 {[%clk 0:00:02]}  Ke6 {[%clk 0:00:17]} 53. Bf2 {[%clk 0:00:02]}  Qb1+ {[%clk 0:00:17]} 54. Kd2 {[%clk 0:00:03]}  h5 {[%clk 0:00:18]} 55. Be3 {[%clk 0:00:03]}  Qxe4 {[%clk 0:00:17]} 0-1


[Site "https://www.chess.com"]

[Event "Titled Tuesday Blitz October 11 Late 2022"]
[White "Haszon, David"]
[Black "Clawitter, Craig"]
[WhiteFideId "733610"]
[BlackFideId "2023105"]
[WhiteElo "2211"]
[BlackElo "2234"]
[Result "1/2-1/2"]
[Round "08"]
[TimeControl "180+1"]
[Date "2022.10.12"]
[WhiteClock "0:00:14"]
[BlackClock "0:00:04"]

1. e4 {[%clk 0:03:00]}  e6 {[%clk 0:03:00]} 2. d4 {[%clk 0:03:00]}  d5 {[%clk 0:03:00]} 3. Nd2 {[%clk 0:03:01]}  Be7 {[%clk 0:03:00]} 4. c3 {[%clk 0:03:00]}  c5 {[%clk 0:02:58]} 5. Ngf3 {[%clk 0:02:59]}  cxd4 {[%clk 0:02:55]} 6. Nxd4 {[%clk 0:03:00]}  Nf6 {[%clk 0:02:53]} 7. e5 {[%clk 0:02:57]}  Nfd7 {[%clk 0:02:53]} 8. f4 {[%clk 0:02:55]}  Nc6 {[%clk 0:02:53]} 9. N2f3 {[%clk 0:02:46]}  O-O {[%clk 0:02:46]} 10. Bd3 {[%clk 0:02:46]}  Nc5 {[%clk 0:02:41]} 11. Bc2 {[%clk 0:02:26]}  f6 {[%clk 0:02:36]} 12. O-O {[%clk 0:02:21]}  fxe5 {[%clk 0:02:29]} 13. Nxc6 {[%clk 0:02:20]}  bxc6 {[%clk 0:02:27]} 14. Nxe5 {[%clk 0:02:21]}  Qc7 {[%clk 0:02:01]} 15. Qh5 {[%clk 0:02:14]}  h6 {[%clk 0:01:51]} 16. Qg6 {[%clk 0:02:09]}  Ne4 {[%clk 0:01:31]} 17. Bxe4 {[%clk 0:01:59]}  dxe4 {[%clk 0:01:32]} 18. Qxe4 {[%clk 0:02:00]}  Ba6 {[%clk 0:01:31]} 19. Re1 {[%clk 0:01:55]}  Bc5+ {[%clk 0:01:12]} 20. Be3 {[%clk 0:01:53]}  Bxe3+ {[%clk 0:01:06]} 21. Rxe3 {[%clk 0:01:54]}  Rab8 {[%clk 0:00:58]} 22. b4 {[%clk 0:01:52]}  c5 {[%clk 0:00:57]} 23. Nc6 {[%clk 0:01:34]}  Rbe8 {[%clk 0:00:54]} 24. Ne5 {[%clk 0:01:26]}  Bb7 {[%clk 0:00:36]} 25. Qc4 {[%clk 0:01:23]}  Bd5 {[%clk 0:00:36]} 26. Qxc5 {[%clk 0:01:20]}  Qxc5 {[%clk 0:00:37]} 27. bxc5 {[%clk 0:01:21]}  Rxf4 {[%clk 0:00:37]} 28. Rd1 {[%clk 0:00:56]}  Ra4 {[%clk 0:00:27]} 29. Rd2 {[%clk 0:00:46]}  Rc8 {[%clk 0:00:23]} 30. c4 {[%clk 0:00:33]}  Bxc4 {[%clk 0:00:21]} 31. Nxc4 {[%clk 0:00:34]}  Rxc4 {[%clk 0:00:21]} 32. Rxe6 {[%clk 0:00:34]}  R4xc5 {[%clk 0:00:15]} 33. Re7 {[%clk 0:00:31]}  Rc1+ {[%clk 0:00:12]} 34. Kf2 {[%clk 0:00:31]}  R1c2 {[%clk 0:00:12]} 35. Rd7 {[%clk 0:00:27]}  Rxd2+ {[%clk 0:00:11]} 36. Rxd2 {[%clk 0:00:27]}  Rc3 {[%clk 0:00:11]} 37. h3 {[%clk 0:00:25]}  Ra3 {[%clk 0:00:11]} 38. Ke2 {[%clk 0:00:22]}  Kf7 {[%clk 0:00:11]} 39. Kd1 {[%clk 0:00:22]}  Kf6 {[%clk 0:00:11]} 40. Kc1 {[%clk 0:00:22]}  g5 {[%clk 0:00:11]} 41. Kb2 {[%clk 0:00:23]}  Ra6 {[%clk 0:00:10]} 42. Kb3 {[%clk 0:00:20]}  Kf5 {[%clk 0:00:09]} 43. a4 {[%clk 0:00:20]}  h5 {[%clk 0:00:09]} 44. Kb4 {[%clk 0:00:20]}  Rb6+ {[%clk 0:00:08]} 45. Kc5 {[%clk 0:00:20]}  Rb1 {[%clk 0:00:05]} 46. Rf2+ {[%clk 0:00:16]}  Ke4 {[%clk 0:00:05]} 47. a5 {[%clk 0:00:15]}  g4 {[%clk 0:00:04]} 48. hxg4 {[%clk 0:00:15]}  hxg4 {[%clk 0:00:05]} 49. Rf7 {[%clk 0:00:15]}  Rb2 {[%clk 0:00:03]} 50. Rxa7 {[%clk 0:00:13]}  Rxg2 {[%clk 0:00:04]} 51. Re7+ {[%clk 0:00:14]}  Kf3 {[%clk 0:00:04]} 52. a6 {[%clk 0:00:13]}  Ra2 {[%clk 0:00:03]} 53. Kb6 {[%clk 0:00:13]}  g3 {[%clk 0:00:04]} 54. Rf7+ {[%clk 0:00:13]}  Ke3 {[%clk 0:00:03]} 55. Re7+ {[%clk 0:00:13]}  Kf2 {[%clk 0:00:03]} 56. Rf7+ {[%clk 0:00:14]}  Kg1 {[%clk 0:00:04]} 57. Rf5 {[%clk 0:00:14]}  g2 {[%clk 0:00:04]} 58. Rg5 {[%clk 0:00:13]}  Kf1 {[%clk 0:00:03]} 59. Rxg2 {[%clk 0:00:13]}  Kxg2 {[%clk 0:00:03]} 60. a7 {[%clk 0:00:14]}  Rxa7 {[%clk 0:00:04]} 61. Kxa7 {[%clk 0:00:14]} 1/2-1/2


[Site "https://www.chess.com"]